[Event "Titled Tuesday Blitz October 18 Late 2022"]
[White "Tsaruk, Maksim"]
[Black "Hansen, Eric"]
[WhiteFideId "13511173"]
[BlackFideId "2606771"]
[WhiteElo "2273"]
[BlackElo "2568"]
[Result "1/2-1/2"]
[Round "05"]
[TimeControl "180+1"]
[Date "2022.10.18"]
[WhiteClock "0:00:21"]
[BlackClock "0:00:03"]

1. e4 {[%clk 0:03:00]}  c5 {[%clk 0:02:54]} 2. Nf3 {[%clk 0:03:01]}  e6 {[%clk 0:02:54]} 3. d4 {[%clk 0:03:01]}  cxd4 {[%clk 0:02:54]} 4. Nxd4 {[%clk 0:03:02]}  a6 {[%clk 0:02:55]} 5. c4 {[%clk 0:03:02]}  Nf6 {[%clk 0:02:54]} 6. Nc3 {[%clk 0:03:03]}  Qc7 {[%clk 0:02:52]} 7. a3 {[%clk 0:03:02]}  b6 {[%clk 0:02:50]} 8. Be3 {[%clk 0:03:03]}  Bb7 {[%clk 0:02:51]} 9. f3 {[%clk 0:03:03]}  d6 {[%clk 0:02:51]} 10. Rc1 {[%clk 0:03:04]}  Nbd7 {[%clk 0:02:52]} 11. Be2 {[%clk 0:03:03]}  Be7 {[%clk 0:02:52]} 12. O-O {[%clk 0:03:04]}  O-O {[%clk 0:02:51]} 13. b4 {[%clk 0:03:04]}  Rfc8 {[%clk 0:02:51]} 14. Qe1 {[%clk 0:03:02]}  Qd8 {[%clk 0:02:51]} 15. Qf2 {[%clk 0:03:02]}  Ne5 {[%clk 0:02:48]} 16. Na4 {[%clk 0:02:59]}  Nfd7 {[%clk 0:02:33]} 17. Nb3 {[%clk 0:02:55]}  Rc6 {[%clk 0:02:06]} 18. f4 {[%clk 0:02:46]}  Ng6 {[%clk 0:02:02]} 19. f5 {[%clk 0:02:45]}  exf5 {[%clk 0:02:00]} 20. exf5 {[%clk 0:02:44]}  Nge5 {[%clk 0:02:00]} 21. Nd4 {[%clk 0:02:23]}  Rcc8 {[%clk 0:01:58]} 22. f6 {[%clk 0:02:23]}  Nxf6 {[%clk 0:01:51]} 23. Nf5 {[%clk 0:02:23]}  Ne4 {[%clk 0:01:48]} 24. Qe1 {[%clk 0:01:58]}  Bg5 {[%clk 0:01:37]} 25. Bxg5 {[%clk 0:01:55]}  Qxg5 {[%clk 0:01:15]} 26. Qh4 {[%clk 0:01:52]}  Qd2 {[%clk 0:00:48]} 27. Nxb6 {[%clk 0:01:31]}  Re8 {[%clk 0:00:22]} 28. Qe1 {[%clk 0:00:41]}  Qg5 {[%clk 0:00:17]} 29. Qh4 {[%clk 0:00:39]}  Qd2 {[%clk 0:00:17]} 30. Qe1 {[%clk 0:00:39]}  Qg5 {[%clk 0:00:08]} 31. Qh4 {[%clk 0:00:21]}  Qd2 {[%clk 0:00:03]} 1/2-1/2


[Site "https://www.chess.com"]

[Event "Titled Tuesday Blitz October 18 Late 2022"]
[White "Tsyhanchuk, Stanislav"]
[Black "Shuvalov, Evgenij"]
[WhiteFideId "13505130"]
[BlackFideId "4187237"]
[WhiteElo "2173"]
[BlackElo "2049"]
[Result "0-1"]
[Round "05"]
[TimeControl "180+1"]
[Date "2022.10.19"]
[WhiteClock "0:00:02"]
[BlackClock "0:00:46"]

1. e4 {[%clk 0:02:57]}  e6 {[%clk 0:02:59]} 2. d4 {[%clk 0:02:57]}  d5 {[%clk 0:03:00]} 3. Nc3 {[%clk 0:02:57]}  Bb4 {[%clk 0:03:00]} 4. e5 {[%clk 0:02:57]}  c5 {[%clk 0:03:00]} 5. a3 {[%clk 0:02:58]}  Bxc3+ {[%clk 0:03:00]} 6. bxc3 {[%clk 0:02:59]}  Ne7 {[%clk 0:03:01]} 7. h4 {[%clk 0:02:59]}  Qc7 {[%clk 0:03:00]} 8. h5 {[%clk 0:02:59]}  h6 {[%clk 0:03:00]} 9. Rb1 {[%clk 0:02:59]}  b6 {[%clk 0:03:00]} 10. Qg4 {[%clk 0:02:59]}  Rg8 {[%clk 0:02:59]} 11. Bb5+ {[%clk 0:03:00]}  Kf8 {[%clk 0:02:58]} 12. Nf3 {[%clk 0:03:00]}  Ba6 {[%clk 0:02:58]} 13. a4 {[%clk 0:02:44]}  Bxb5 {[%clk 0:02:56]} 14. axb5 {[%clk 0:02:45]}  a5 {[%clk 0:02:56]} 15. O-O {[%clk 0:02:35]}  Nd7 {[%clk 0:02:54]} 16. Ba3 {[%clk 0:02:32]}  Ke8 {[%clk 0:02:52]} 17. Nh4 {[%clk 0:02:23]}  cxd4 {[%clk 0:02:38]} 18. cxd4 {[%clk 0:02:24]}  Qxc2 {[%clk 0:02:38]} 19. Rbc1 {[%clk 0:01:50]}  Qd3 {[%clk 0:02:35]} 20. Bd6 {[%clk 0:01:41]}  Nf5 {[%clk 0:02:33]} 21. Nxf5 {[%clk 0:01:37]}  Qxf5 {[%clk 0:02:34]} 22. Qh4 {[%clk 0:01:21]}  Qg5 {[%clk 0:02:32]} 23. Qh3 {[%clk 0:01:22]}  g6 {[%clk 0:02:31]} 24. f4 {[%clk 0:01:11]}  Qf5 {[%clk 0:02:28]} 25. Qc3 {[%clk 0:01:09]}  Rd8 {[%clk 0:02:21]} 26. Qc6 {[%clk 0:00:53]}  gxh5 {[%clk 0:02:17]} 27. Rf2 {[%clk 0:00:40]}  h4 {[%clk 0:02:10]} 28. Ba3 {[%clk 0:00:34]}  f6 {[%clk 0:01:34]} 29. Qd6 {[%clk 0:00:30]}  Kf7 {[%clk 0:01:35]} 30. Rc7 {[%clk 0:00:31]}  Kg6 {[%clk 0:01:31]} 31. Rxd7 {[%clk 0:00:28]}  Rxd7 {[%clk 0:01:32]} 32. Qxd7 {[%clk 0:00:29]}  Qb1+ {[%clk 0:01:22]} 33. Kh2 {[%clk 0:00:28]}  Kf5 {[%clk 0:01:10]} 34. Qc6 {[%clk 0:00:15]}  h3 {[%clk 0:01:01]} 35. Qc2+ {[%clk 0:00:13]}  Qxc2 {[%clk 0:01:01]} 36. Rxc2 {[%clk 0:00:14]}  fxe5 {[%clk 0:00:57]} 37. fxe5 {[%clk 0:00:13]}  Rxg2+ {[%clk 0:00:55]} 38. Rxg2 {[%clk 0:00:13]}  hxg2 {[%clk 0:00:56]} 39. Kxg2 {[%clk 0:00:14]}  Ke4 {[%clk 0:00:57]} 40. Bc5 {[%clk 0:00:12]}  a4 {[%clk 0:00:52]} 41. Bxb6 {[%clk 0:00:08]}  a3 {[%clk 0:00:52]} 42. Ba5 {[%clk 0:00:08]}  Kd3 {[%clk 0:00:50]} 43. b6 {[%clk 0:00:06]}  a2 {[%clk 0:00:50]} 44. b7 {[%clk 0:00:07]}  a1=Q {[%clk 0:00:51]} 45. b8=Q {[%clk 0:00:05]}  Qxa5 {[%clk 0:00:51]} 46. Qb3+ {[%clk 0:00:02]}  Kxd4 {[%clk 0:00:49]} 47. Qg3 {[%clk 0:00:01]}  Qd2+ {[%clk 0:00:48]} 48. Kh1 {[%clk 0:00:02]}  Qc1+ {[%clk 0:00:46]} 49. Kg2 {[%clk 0:00:02]}  Qg5 {[%clk 0:00:46]} 0-1


[Site "https://www.chess.com"]

[Event "Titled Tuesday Blitz October 18 Late 2022"]
[White "Vargas, Mauricio"]
[Black "Clawitter, Craig"]
[WhiteFideId "4404572"]
[BlackFideId "2023105"]
[WhiteElo "2025"]
[BlackElo "2203"]
[Result "1-0"]
[Round "05"]
[TimeControl "180+1"]
[Date "2022.10.19"]
[WhiteClock "0:00:48"]
[BlackClock "0:00:16"]

1. e4 {[%clk 0:02:34]}  e6 {[%clk 0:02:36]} 2. f4 {[%clk 0:02:34]}  d5 {[%clk 0:02:35]} 3. e5 {[%clk 0:02:35]}  c5 {[%clk 0:02:35]} 4. Nf3 {[%clk 0:02:35]}  Nc6 {[%clk 0:02:35]} 5. Bb5 {[%clk 0:02:36]}  Bd7 {[%clk 0:02:33]} 6. Bxc6 {[%clk 0:02:37]}  Bxc6 {[%clk 0:02:32]} 7. O-O {[%clk 0:02:38]}  Ne7 {[%clk 0:02:32]} 8. d3 {[%clk 0:02:38]}  Nf5 {[%clk 0:02:32]} 9. Qe1 {[%clk 0:02:38]}  Be7 {[%clk 0:02:32]} 10. g4 {[%clk 0:02:38]}  Nh4 {[%clk 0:02:32]} 11. Nbd2 {[%clk 0:02:37]}  O-O {[%clk 0:02:20]} 12. g5 {[%clk 0:02:36]}  Nf5 {[%clk 0:02:12]} 13. c3 {[%clk 0:02:34]}  d4 {[%clk 0:02:06]} 14. c4 {[%clk 0:02:29]}  Ne3 {[%clk 0:02:05]} 15. Ne4 {[%clk 0:02:07]}  Nxf1 {[%clk 0:01:59]} 16. Qxf1 {[%clk 0:02:07]}  Bxe4 {[%clk 0:01:54]} 17. dxe4 {[%clk 0:02:06]}  f6 {[%clk 0:01:41]} 18. exf6 {[%clk 0:01:59]}  gxf6 {[%clk 0:01:42]} 19. gxf6 {[%clk 0:01:58]}  Rxf6 {[%clk 0:01:36]} 20. Kh1 {[%clk 0:01:55]}  Kh8 {[%clk 0:01:31]} 21. Ng5 {[%clk 0:01:54]}  Qg8 {[%clk 0:01:20]} 22. Qh3 {[%clk 0:01:47]}  Raf8 {[%clk 0:01:12]} 23. Bd2 {[%clk 0:01:47]}  Rg6 {[%clk 0:01:07]} 24. Rg1 {[%clk 0:01:41]}  Bxg5 {[%clk 0:01:03]} 25. fxg5 {[%clk 0:01:40]}  Rf2 {[%clk 0:00:35]} 26. Bc1 {[%clk 0:01:34]}  Qf7 {[%clk 0:00:22]} 27. Qg3 {[%clk 0:01:33]}  Rg8 {[%clk 0:00:19]} 28. Qe5+ {[%clk 0:01:28]}  Qg7 {[%clk 0:00:19]} 29. Qg3 {[%clk 0:01:26]}  Rgf8 {[%clk 0:00:18]} 30. h4 {[%clk 0:01:12]}  Rf1 {[%clk 0:00:18]} 31. Qg2 {[%clk 0:00:59]}  Rxg1+ {[%clk 0:00:16]} 32. Kxg1 {[%clk 0:00:53]}  Qe5 {[%clk 0:00:16]} 33. b3 {[%clk 0:00:49]}  d3 {[%clk 0:00:16]} 34. Bb2 {[%clk 0:00:48]} 1-0


[Site "https://www.chess.com"]

[Event "Titled Tuesday Blitz October 18 Late 2022"]
[White "Vujic, Mihailo"]
[Black "Lima, Endson Dos Santos"]
[WhiteFideId "918873"]
[BlackFideId "2133199"]
[WhiteElo "2256"]
[BlackElo "1953"]
[Result "1-0"]
[Round "05"]
[TimeControl "180+1"]
[Date "2022.10.19"]
[WhiteClock "0:01:44"]
[BlackClock "0:01:13"]

1. e4 {[%clk 0:02:58]}  c5 {[%clk 0:02:53]} 2. c3 {[%clk 0:02:56]}  Nf6 {[%clk 0:02:52]} 3. e5 {[%clk 0:02:56]}  Nd5 {[%clk 0:02:53]} 4. Nf3 {[%clk 0:02:57]}  d6 {[%clk 0:02:51]} 5. d4 {[%clk 0:02:56]}  cxd4 {[%clk 0:02:51]} 6. cxd4 {[%clk 0:02:55]}  Nc6 {[%clk 0:02:49]} 7. Bc4 {[%clk 0:02:54]}  Nb6 {[%clk 0:02:49]} 8. Bb3 {[%clk 0:02:53]}  g6 {[%clk 0:02:48]} 9. Ng5 {[%clk 0:02:40]}  e6 {[%clk 0:02:27]} 10. exd6 {[%clk 0:02:31]}  Bxd6 {[%clk 0:02:23]} 11. h4 {[%clk 0:02:16]}  h6 {[%clk 0:02:10]} 12. Ne4 {[%clk 0:02:15]}  Be7 {[%clk 0:02:07]} 13. Be3 {[%clk 0:02:13]}  Nd5 {[%clk 0:02:02]} 14. Nbc3 {[%clk 0:02:10]}  Nxe3 {[%clk 0:02:02]} 15. fxe3 {[%clk 0:02:09]}  Bxh4+ {[%clk 0:02:01]} 16. g3 {[%clk 0:02:07]}  Bf6 {[%clk 0:01:57]} 17. Qf3 {[%clk 0:02:06]}  Bg7 {[%clk 0:01:56]} 18. O-O-O {[%clk 0:02:04]}  O-O {[%clk 0:01:48]} 19. d5 {[%clk 0:01:59]}  exd5 {[%clk 0:01:37]} 20. Nxd5 {[%clk 0:01:58]}  Qa5 {[%clk 0:01:37]} 21. Nef6+ {[%clk 0:01:57]}  Bxf6 {[%clk 0:01:25]} 22. Qxf6 {[%clk 0:01:55]}  Bf5 {[%clk 0:01:13]} 23. Rxh6 {[%clk 0:01:53]}  Qc5+ {[%clk 0:01:13]} 24. Kd2 {[%clk 0:01:44]} 1-0


[Site "https://www.chess.com"]

[Event "Titled Tuesday Blitz October 18 Late 2022"]
[White "Wieczorek, Oskar"]
[Black "Kanter, Eduard"]
[WhiteFideId "1133950"]
[BlackFideId "4103963"]
[WhiteElo "2745"]
[BlackElo "2500"]
[Result "1-0"]
[Round "05"]
[TimeControl "180+1"]
[Date "2022.10.19"]
[WhiteClock "0:00:35"]
[BlackClock "0:00:18"]

1. e4 {[%clk 0:03:00]}  c5 {[%clk 0:02:57]} 2. Nf3 {[%clk 0:03:00]}  d6 {[%clk 0:02:57]} 3. d4 {[%clk 0:02:57]}  cxd4 {[%clk 0:02:57]} 4. Nxd4 {[%clk 0:02:57]}  Nf6 {[%clk 0:02:57]} 5. Nc3 {[%clk 0:02:57]}  g6 {[%clk 0:02:58]} 6. Be3 {[%clk 0:02:55]}  Bg7 {[%clk 0:02:58]} 7. f3 {[%clk 0:02:55]}  O-O {[%clk 0:02:58]} 8. Qd2 {[%clk 0:02:56]}  Nc6 {[%clk 0:02:59]} 9. Bc4 {[%clk 0:02:56]}  Bd7 {[%clk 0:02:58]} 10. Bb3 {[%clk 0:02:55]}  Rc8 {[%clk 0:02:54]} 11. h4 {[%clk 0:02:53]}  h5 {[%clk 0:02:46]} 12. O-O-O {[%clk 0:02:35]}  Ne5 {[%clk 0:02:46]} 13. Bg5 {[%clk 0:02:35]}  Rc5 {[%clk 0:02:45]} 14. Kb1 {[%clk 0:02:35]}  Re8 {[%clk 0:02:39]} 15. g4 {[%clk 0:02:32]}  hxg4 {[%clk 0:02:37]} 16. f4 {[%clk 0:02:33]}  Nc4 {[%clk 0:02:37]} 17. Qd3 {[%clk 0:02:29]}  Na5 {[%clk 0:02:29]} 18. f5 {[%clk 0:02:07]}  Nxb3 {[%clk 0:02:25]} 19. Nxb3 {[%clk 0:02:00]}  Rxc3 {[%clk 0:01:54]} 20. bxc3 {[%clk 0:02:01]}  Bc6 {[%clk 0:01:46]} 21. fxg6 {[%clk 0:01:57]}  fxg6 {[%clk 0:01:29]} 22. Qc4+ {[%clk 0:01:43]}  Kh7 {[%clk 0:01:10]} 23. Bxf6 {[%clk 0:00:57]}  exf6 {[%clk 0:01:04]} 24. h5 {[%clk 0:00:57]}  Bxe4 {[%clk 0:00:58]} 25. Qf7 {[%clk 0:00:43]}  g5 {[%clk 0:00:43]} 26. h6 {[%clk 0:00:40]}  Re7 {[%clk 0:00:40]} 27. hxg7+ {[%clk 0:00:39]}  Bxh1 {[%clk 0:00:28]} 28. g8=Q+ {[%clk 0:00:39]}  Kh6 {[%clk 0:00:25]} 29. Qh8+ {[%clk 0:00:34]}  Qxh8 {[%clk 0:00:18]} 30. Rxh1# {[%clk 0:00:35]} 1-0


[Site "https://www.chess.com"]

[Event "Titled Tuesday Blitz October 18 Late 2022"]
[White "Zhurbinsky, David"]
[Black "Koziorowicz, Michal"]
[WhiteFideId "2072904"]
[BlackFideId "21809194"]
[WhiteElo "2593"]
[BlackElo "2220"]
[Result "1-0"]
[Round "05"]
[TimeControl "180+1"]
[Date "2022.10.18"]
[WhiteClock "0:00:09"]
[BlackClock "0:00:06"]

1. e4 {[%clk 0:03:00]}  c5 {[%clk 0:02:59]} 2. Nf3 {[%clk 0:03:01]}  d6 {[%clk 0:02:59]} 3. d4 {[%clk 0:03:01]}  cxd4 {[%clk 0:03:00]} 4. Nxd4 {[%clk 0:03:01]}  Nf6 {[%clk 0:03:01]} 5. f3 {[%clk 0:03:01]}  g6 {[%clk 0:03:01]} 6. c4 {[%clk 0:03:01]}  Bg7 {[%clk 0:03:02]} 7. Nc3 {[%clk 0:03:02]}  O-O {[%clk 0:03:03]} 8. Be3 {[%clk 0:03:02]}  Nc6 {[%clk 0:03:03]} 9. Be2 {[%clk 0:03:03]}  Nxd4 {[%clk 0:03:03]} 10. Bxd4 {[%clk 0:03:04]}  Be6 {[%clk 0:03:03]} 11. O-O {[%clk 0:03:03]}  a6 {[%clk 0:03:04]} 12. Rc1 {[%clk 0:03:03]}  Qa5 {[%clk 0:03:04]} 13. Kh1 {[%clk 0:02:56]}  Rfc8 {[%clk 0:03:02]} 14. b3 {[%clk 0:02:56]}  h5 {[%clk 0:03:00]} 15. f4 {[%clk 0:02:31]}  Bg4 {[%clk 0:02:43]} 16. Bxf6 {[%clk 0:02:17]}  Bxe2 {[%clk 0:02:35]} 17. Qxe2 {[%clk 0:02:18]}  Bxf6 {[%clk 0:02:30]} 18. Nd5 {[%clk 0:02:19]}  Qd8 {[%clk 0:02:00]} 19. e5 {[%clk 0:01:58]}  Bg7 {[%clk 0:01:28]} 20. exd6 {[%clk 0:01:51]}  exd6 {[%clk 0:01:26]} 21. Ne7+ {[%clk 0:01:51]}  Kh7 {[%clk 0:01:27]} 22. Nxc8 {[%clk 0:01:50]}  Rxc8 {[%clk 0:01:27]} 23. Rcd1 {[%clk 0:01:49]}  Qc7 {[%clk 0:01:07]} 24. Rf3 {[%clk 0:01:34]}  Qc6 {[%clk 0:01:00]} 25. Qe7 {[%clk 0:01:18]}  Rc7 {[%clk 0:00:45]} 26. Qxd6 {[%clk 0:01:12]}  Qxd6 {[%clk 0:00:45]} 27. Rxd6 {[%clk 0:01:13]}  b5 {[%clk 0:00:46]} 28. Rxa6 {[%clk 0:01:06]}  bxc4 {[%clk 0:00:46]} 29. bxc4 {[%clk 0:01:06]}  Rxc4 {[%clk 0:00:47]} 30. g3 {[%clk 0:01:04]}  Bd4 {[%clk 0:00:44]} 31. Rd3 {[%clk 0:00:53]}  h4 {[%clk 0:00:44]} 32. Kg2 {[%clk 0:00:48]}  Kh6 {[%clk 0:00:43]} 33. Kh3 {[%clk 0:00:39]}  Bf2 {[%clk 0:00:41]} 34. Rf3 {[%clk 0:00:33]}  hxg3 {[%clk 0:00:39]} 35. hxg3 {[%clk 0:00:32]}  Bd4 {[%clk 0:00:39]} 36. a4 {[%clk 0:00:30]}  Bc3 {[%clk 0:00:35]} 37. g4 {[%clk 0:00:27]}  Bd2 {[%clk 0:00:33]} 38. Kg3 {[%clk 0:00:23]}  Be1+ {[%clk 0:00:31]} 39. Kg2 {[%clk 0:00:23]}  Bd2 {[%clk 0:00:31]} 40. f5 {[%clk 0:00:23]}  Kg5 {[%clk 0:00:20]} 41. fxg6 {[%clk 0:00:20]}  fxg6 {[%clk 0:00:21]} 42. Rd3 {[%clk 0:00:15]}  Bf4 {[%clk 0:00:21]} 43. Rd5+ {[%clk 0:00:14]}  Kh6 {[%clk 0:00:17]} 44. Rh5+ {[%clk 0:00:10]}  Kg7 {[%clk 0:00:16]} 45. Ra7+ {[%clk 0:00:09]}  Kg8 {[%clk 0:00:16]} 46. Rd5 {[%clk 0:00:09]}  Rc8 {[%clk 0:00:13]} 47. Rdd7 {[%clk 0:00:09]}  Be5 {[%clk 0:00:13]} 48. a5 {[%clk 0:00:09]}  Kf8 {[%clk 0:00:06]} 49. a6 {[%clk 0:00:09]}  Ke8 {[%clk 0:00:06]} 50. Re7+ {[%clk 0:00:09]} 1-0


[Site "https://www.chess.com"]

[Event "Titled Tuesday Blitz October 18 Late 2022"]
[White "Zou, Chen"]
[Black "Bluebaum, Matthias"]
[WhiteFideId "8610959"]
[BlackFideId "24651516"]
[WhiteElo "2325"]
[BlackElo "2633"]
[Result "1-0"]
[Round "05"]
[TimeControl "180+1"]
[Date "2022.10.18"]
[WhiteClock "0:00:24"]
[BlackClock "0:00:02"]

1. e4 {[%clk 0:03:00]}  e6 {[%clk 0:03:00]} 2. d4 {[%clk 0:03:00]}  d5 {[%clk 0:03:01]} 3. Nd2 {[%clk 0:02:53]}  c5 {[%clk 0:03:01]} 4. Ngf3 {[%clk 0:02:51]}  cxd4 {[%clk 0:03:01]} 5. Nxd4 {[%clk 0:02:52]}  Nf6 {[%clk 0:03:01]} 6. exd5 {[%clk 0:02:52]}  Nxd5 {[%clk 0:03:02]} 7. N2f3 {[%clk 0:02:51]}  Bb4+ {[%clk 0:03:03]} 8. Bd2 {[%clk 0:02:51]}  O-O {[%clk 0:03:03]} 9. Bc4 {[%clk 0:02:51]}  b6 {[%clk 0:03:03]} 10. Bxb4 {[%clk 0:02:41]}  Nxb4 {[%clk 0:03:04]} 11. Qd2 {[%clk 0:02:41]}  Nd5 {[%clk 0:02:57]} 12. O-O {[%clk 0:02:28]}  Bb7 {[%clk 0:02:56]} 13. Rad1 {[%clk 0:02:28]}  Nc6 {[%clk 0:02:43]} 14. Nxc6 {[%clk 0:02:25]}  Bxc6 {[%clk 0:02:43]} 15. Ne5 {[%clk 0:02:12]}  Bb7 {[%clk 0:02:39]} 16. Bxd5 {[%clk 0:02:13]}  Bxd5 {[%clk 0:02:00]} 17. c4 {[%clk 0:02:07]}  Bb7 {[%clk 0:01:59]} 18. Qf4 {[%clk 0:01:26]}  Qc8 {[%clk 0:01:58]} 19. Rd7 {[%clk 0:01:12]}  Ba6 {[%clk 0:00:43]} 20. Rfd1 {[%clk 0:01:00]}  Qc5 {[%clk 0:00:27]} 21. h3 {[%clk 0:00:45]}  Rae8 {[%clk 0:00:11]} 22. Rxa7 {[%clk 0:00:39]}  Bc8 {[%clk 0:00:09]} 23. Rxf7 {[%clk 0:00:38]}  b5 {[%clk 0:00:04]} 24. b3 {[%clk 0:00:35]}  bxc4 {[%clk 0:00:04]} 25. bxc4 {[%clk 0:00:36]}  Qa3 {[%clk 0:00:03]} 26. Rd3 {[%clk 0:00:29]}  Qxa2 {[%clk 0:00:03]} 27. Rg3 {[%clk 0:00:28]}  Qa1+ {[%clk 0:00:03]} 28. Kh2 {[%clk 0:00:28]}  g6 {[%clk 0:00:02]} 29. Qf6 {[%clk 0:00:23]}  Qxe5 {[%clk 0:00:01]} 30. Rxf8+ {[%clk 0:00:24]}  Rxf8 {[%clk 0:00:02]} 31. Qxe5 {[%clk 0:00:24]} 1-0


[Site "https://www.chess.com"]

[Event "Titled Tuesday Blitz October 18 Late 2022"]
[White "Zverev, Lev"]
[Black "Tan, Ralph"]
[WhiteFideId "24250775"]
[BlackFideId "30966590"]
[WhiteElo "2633"]
[BlackElo "2484"]
[Result "1-0"]
[Round "05"]
[TimeControl "180+1"]
[Date "2022.10.19"]
[WhiteClock "0:00:05"]
[BlackClock "0:00:31"]

1. g4 {[%clk 0:01:01]}  e6 {[%clk 0:02:55]} 2. Bg2 {[%clk 0:00:59]}  Ne7 {[%clk 0:02:54]} 3. c4 {[%clk 0:00:57]}  Ng6 {[%clk 0:02:54]} 4. Nc3 {[%clk 0:00:57]}  Nh4 {[%clk 0:02:53]} 5. Bh3 {[%clk 0:00:56]}  d5 {[%clk 0:02:53]} 6. d4 {[%clk 0:00:55]}  Be7 {[%clk 0:02:52]} 7. Bf4 {[%clk 0:00:53]}  O-O {[%clk 0:02:51]} 8. Qd2 {[%clk 0:00:52]}  b6 {[%clk 0:02:49]} 9. O-O-O {[%clk 0:00:50]}  Bb7 {[%clk 0:02:49]} 10. cxd5 {[%clk 0:00:46]}  Bxd5 {[%clk 0:02:41]} 11. e4 {[%clk 0:00:44]}  Bb7 {[%clk 0:02:41]} 12. Nge2 {[%clk 0:00:41]}  Nc6 {[%clk 0:02:31]} 13. Bg3 {[%clk 0:00:38]}  a5 {[%clk 0:02:19]} 14. f4 {[%clk 0:00:37]}  a4 {[%clk 0:02:17]} 15. g5 {[%clk 0:00:35]}  a3 {[%clk 0:02:00]} 16. Bxh4 {[%clk 0:00:34]}  axb2+ {[%clk 0:02:00]} 17. Kb1 {[%clk 0:00:34]}  Na5 {[%clk 0:01:54]} 18. f5 {[%clk 0:00:29]}  Nc4 {[%clk 0:01:54]} 19. Qf4 {[%clk 0:00:29]}  exf5 {[%clk 0:01:41]} 20. exf5 {[%clk 0:00:20]}  Bd6 {[%clk 0:01:37]} 21. Qf2 {[%clk 0:00:18]}  Bxh1 {[%clk 0:01:35]} 22. g6 {[%clk 0:00:17]}  fxg6 {[%clk 0:01:34]} 23. Bxd8 {[%clk 0:00:15]}  Raxd8 {[%clk 0:01:15]} 24. Rxh1 {[%clk 0:00:14]}  Ba3 {[%clk 0:01:09]} 25. Nf4 {[%clk 0:00:09]}  c5 {[%clk 0:00:59]} 26. Ne6 {[%clk 0:00:08]}  cxd4 {[%clk 0:00:59]} 27. Ne4 {[%clk 0:00:04]}  gxf5 {[%clk 0:00:50]} 28. Nxd8 {[%clk 0:00:03]}  Rxd8 {[%clk 0:00:45]} 29. Bxf5 {[%clk 0:00:03]}  g6 {[%clk 0:00:41]} 30. Be6+ {[%clk 0:00:02]}  Kg7 {[%clk 0:00:38]} 31. Bxc4 {[%clk 0:00:03]}  Rf8 {[%clk 0:00:37]} 32. Qd2 {[%clk 0:00:03]}  Rd8 {[%clk 0:00:32]} 33. Qd3 {[%clk 0:00:04]}  Rd7 {[%clk 0:00:30]} 34. Rd1 {[%clk 0:00:05]}  Re7 {[%clk 0:00:29]} 35. Qxa3 {[%clk 0:00:05]}  Rxe4 {[%clk 0:00:29]} 36. Qa7+ {[%clk 0:00:06]}  Kh6 {[%clk 0:00:29]} 37. Qxb6 {[%clk 0:00:06]}  Re3 {[%clk 0:00:29]} 38. Qxd4 {[%clk 0:00:05]}  Rh3 {[%clk 0:00:29]} 39. Qxb2 {[%clk 0:00:05]}  Rh4 {[%clk 0:00:29]} 40. Bb3 {[%clk 0:00:04]}  Rh3 {[%clk 0:00:29]} 41. a4 {[%clk 0:00:05]}  Rh5 {[%clk 0:00:28]} 42. a5 {[%clk 0:00:05]}  Rxa5 {[%clk 0:00:28]} 43. Qd2+ {[%clk 0:00:06]}  Kh5 {[%clk 0:00:28]} 44. Qxa5+ {[%clk 0:00:06]}  g5 {[%clk 0:00:29]} 45. Rg1 {[%clk 0:00:05]}  h6 {[%clk 0:00:30]} 46. Qf5 {[%clk 0:00:05]}  Kh4 {[%clk 0:00:31]} 47. Qg4# {[%clk 0:00:05]} 1-0


[Site "https://www.chess.com"]

[Event "Titled Tuesday Blitz October 18 Late 2022"]
[White "Aghasiyev, Kamal"]
[Black "Goncalves, Davi Sulzbacher"]
[WhiteFideId "13402854"]
[BlackFideId "2154510"]
[WhiteElo "2341"]
[BlackElo "2182"]
[Result "0-1"]
[Round "06"]
[TimeControl "180+1"]
[Date "2022.10.19"]
[WhiteClock "0:00:47"]
[BlackClock "0:00:10"]

1. d4 {[%clk 0:02:59]}  Nf6 {[%clk 0:02:59]} 2. c4 {[%clk 0:02:59]}  e6 {[%clk 0:02:56]} 3. Nc3 {[%clk 0:02:59]}  Bb4 {[%clk 0:02:55]} 4. Qc2 {[%clk 0:02:59]}  O-O {[%clk 0:02:54]} 5. e4 {[%clk 0:02:59]}  Bxc3+ {[%clk 0:02:53]} 6. bxc3 {[%clk 0:02:57]}  d6 {[%clk 0:02:54]} 7. f4 {[%clk 0:02:48]}  e5 {[%clk 0:02:51]} 8. fxe5 {[%clk 0:02:47]}  dxe5 {[%clk 0:02:51]} 9. d5 {[%clk 0:02:47]}  c5 {[%clk 0:02:37]} 10. Nf3 {[%clk 0:02:39]}  Qc7 {[%clk 0:02:29]} 11. Be2 {[%clk 0:02:38]}  Ne8 {[%clk 0:02:26]} 12. O-O {[%clk 0:02:37]}  Nd7 {[%clk 0:02:22]} 13. Bg5 {[%clk 0:02:24]}  f6 {[%clk 0:02:21]} 14. Be3 {[%clk 0:02:22]}  Nd6 {[%clk 0:02:19]} 15. Nh4 {[%clk 0:02:22]}  Nb6 {[%clk 0:02:03]} 16. Kh1 {[%clk 0:02:15]}  Nbxc4 {[%clk 0:02:00]} 17. Bxc4 {[%clk 0:02:14]}  Nxc4 {[%clk 0:01:59]} 18. Bg1 {[%clk 0:02:08]}  Nd6 {[%clk 0:01:47]} 19. h3 {[%clk 0:01:55]}  Bd7 {[%clk 0:01:43]} 20. g4 {[%clk 0:01:52]}  b5 {[%clk 0:01:36]} 21. Nf5 {[%clk 0:01:49]}  Bxf5 {[%clk 0:01:35]} 22. gxf5 {[%clk 0:01:49]}  a5 {[%clk 0:01:29]} 23. a3 {[%clk 0:01:46]}  Rfb8 {[%clk 0:01:02]} 24. Be3 {[%clk 0:01:44]}  c4 {[%clk 0:00:59]} 25. Rf3 {[%clk 0:01:35]}  b4 {[%clk 0:00:53]} 26. axb4 {[%clk 0:01:31]}  axb4 {[%clk 0:00:53]} 27. Rxa8 {[%clk 0:01:26]}  Rxa8 {[%clk 0:00:54]} 28. cxb4 {[%clk 0:01:27]}  Ra1+ {[%clk 0:00:51]} 29. Kg2 {[%clk 0:01:23]}  c3 {[%clk 0:00:43]} 30. Bc5 {[%clk 0:01:20]}  Nb5 {[%clk 0:00:41]} 31. Rf2 {[%clk 0:01:15]}  Qb7 {[%clk 0:00:35]} 32. Qd3 {[%clk 0:01:11]}  h6 {[%clk 0:00:25]} 33. Kh2 {[%clk 0:01:08]}  Kh7 {[%clk 0:00:24]} 34. Rg2 {[%clk 0:01:03]}  Nd4 {[%clk 0:00:19]} 35. Bf8 {[%clk 0:01:01]}  c2 {[%clk 0:00:15]} 36. Qe3 {[%clk 0:00:47]}  c1=Q {[%clk 0:00:10]} 0-1


[Site "https://www.chess.com"]